[Event "XIII Figueira da Foz Open 2019"]
[Site "Figueira da Foz"]
[Date "2019.11.02"]
[Round "8.17"]
[White "Correia, Pedro Mourao Soares"]
[Black "Barrento, Jorge Maria Lopes"]
[Result "0-1"]
[ECO "C40"]
[WhiteElo "1529"]
[BlackElo "1739"]
[Annotator "NA RC"]
[PlyCount "114"]
[EventDate "2019.10.27"]
[EventType "swiss"]
[EventCountry "POR"]
[SourceTitle "playchess.com"]
[Source "ChessBase"]
[SourceQuality "1"]
[TimeControl "40/5400+30:1800+30"]

1. e4 {[%emt 0:06:38]} e5 {[%emt 0:07:27]} 2. Nf3 {[%emt 0:00:35]} Qe7 {[%emt 0:00:03]} 3. Bc4 {[%emt 0:02:33]} d6 {[%emt 0:00:20]} 4. d3 {[%emt 0:04:59]} h6 {[%emt 0:02:51]} 5. Nc3 {[%emt 0:01:13]} c6 {[%emt 0:00:39]} 6. a4 {[%emt 0:02:35]} Be6 {[%emt 0:06:20]} 7. b3 {[%emt 0:04:11]} Nf6 {[%emt 0:01:33]} 8. Qe2 {[%emt 0:03:23]} g6 {[%emt 0:00:43]} 9. Ba3 {[%emt 0:08:15]} Bg7 {[%emt 0:02:07]} 10. O-O {[%emt 0:09:56]} Nh5 {[%emt 0:02:13]} 11. Qd2 {[%emt 0:03:08]} O-O {[%emt 0:01:14]} 12. Bxe6 {[%emt 0:06:11]} Qxe6 {[%emt 0:00:48]} 13. Ne2 {[%emt 0:01:02]} Na6 {[%emt 0:05:28]} 14. Rad1 {[%emt 0:03:02]} Rad8 {[%emt 0:03:46]} 15. Qe3 {[%emt 0:01:53]} c5 {[%emt 0:00:48]} 16. c4 {[%emt 0:07:38]} f5 {[%emt 0:02:57]} 17. exf5 {[%emt 0:01:36]} gxf5 {[%emt 0:04:14]} 18. d4 {[%emt 0:04:03]} e4 {[%emt 0:00:33]} 19. g3 {[%emt 0:08:02]} f4 {[%emt 0:03:26]} 20. Nxf4 {[%emt 0:06:19]} Nxf4 {[%emt 0:01:04]} 21. gxf4 {[%emt 0:03:07]} Qg4+ {[%emt 0:01:21]} 22. Kh1 {[%emt 0:00:17]} Qxf3+ {[%emt 0:00:17]} 23. Qxf3 {[%emt 0:00:04]} exf3 {[%emt 0:00:07]} 24. Rg1 {[%emt 0:00:12]} Kh8 {[%emt 0:01:03]} 25. Rg3 {[%emt 0:02:30]} Bxd4 {[%emt 0:00:39]} 26. Bc1 {[%emt 0:00:37]} Rde8 {[%emt 0:03:21]} 27. f5 {[%emt 0:03:24]} Rxf5 {[%emt 0:03:52]} 28. Rdg1 {[%emt 0:01:25]} Bxf2 {[%emt 0:01:12]} 29. Bb2+ {[%emt 0:00:49]} Bd4 {[%emt 0:02:23]} 30. Rg6 {[%emt 0:04:00]} Rh5 {[%emt 0:04:46]} 31. Bxd4+ {[%emt 0:00:59]} cxd4 {[%emt 0:00:18]} 32. Rxd6 {[%emt 0:00:41]} f2 33. Rf1 Re1 {[%emt 0:04:43]} 34. Kg2 {[%emt 0:01:00]} Rxh2+ {[%emt 0:02:59]} 35. Kxh2 {[%emt 0:00:14]} Rxf1 {[%emt 0:00:01]} 36. Kg2 {[%emt 0:00:21]} Rb1 {[%emt 0:00:03]} 37. Kxf2 {[%emt 0:00:22]} Rxb3 {[%emt 0:00:31]} 38. Rxd4 {[%emt 0:01:07]} Nc5 {[%emt 0:04:37]} 39. a5 {[%emt 0:00:26]} Ra3 {[%emt 0:01:18]} 40. Rd5 {[%emt 0:00:35]} Rxa5 {[%emt 0:01:09]} 41. Ke3 {[%emt 0:00:13]} Kg7 {[%emt 0:01:01]} 42. Kf3 {[%emt 0:04:46]} b6 {[%emt 0:00:54]} 43. Kg4 {[%emt 0:00:53]} Ra4 {[%emt 0:00:40]} 44. Kh5 {[%emt 0:02:13]} Rxc4 {[%emt 0:00:51]} 45. Rd6 {[%emt 0:00:17]} Rc1 {[%emt 0:01:45]} 46. Rc6 {[%emt 0:00:33]} Rh1+ {[%emt 0:01:38]} 47. Kg4 {[%emt 0:00:20]} h5+ {[%emt 0:00:54]} 48. Kf5 {[%emt 0:03:16]} Rd1 {[%emt 0:07:11]} 49. Rc8 {[%emt 0:03:44]} Rd7 {[%emt 0:00:32]} 50. Rc6 {[%emt 0:02:34]} Rd5+ {[%emt 0:02:56]} 51. Kf4 {[%emt 0:01:50]} h4 {[%emt 0:00:01]} 52. Kg4 {[%emt 0:00:25]} Rd4+ {[%emt 0:00:21]} 53. Kh3 {[%emt 0:00:52]} Kf7 {[%emt 0:00:15]} 54. Rh6 {[%emt 0:00:28]} Ne6 {[%emt 0:00:33]} 55. Rh7+ {[%emt 0:01:05]} Ng7 {[%emt 0:00:02]} 56. Rh6 {[%emt 0:00:40]} Rd3+ {[%emt 0:00:16]} 57. Kg4 {[%emt 0:00:51]} h3 {[%emt 0:01:46]} 0-1

[Event "XIII Figueira da Foz Open 2019"]
[Site "Figueira da Foz"]
[Date "2019.11.02"]
[Round "8.18"]
[White "Barros Gutierrez, Angel Luis"]
[Black "Fonseca, Rene Gil Bakker"]
[Result "1-0"]
[ECO "C00"]
[WhiteElo "2038"]
[BlackElo "1338"]
[Annotator "NA RC"]
[PlyCount "77"]
[EventDate "2019.10.27"]
[EventType "swiss"]
[EventCountry "POR"]
[SourceTitle "playchess.com"]
[Source "ChessBase"]
[SourceQuality "1"]
[TimeControl "40/5400+30:1800+30"]

1. e4 {[%emt 0:00:00]} e6 {[%emt 0:00:00]} 2. Nf3 {[%emt 0:00:00]} d5 {[%emt 0:00:00]} 3. exd5 {[%emt 0:00:42]} exd5 {[%emt 0:00:00]} 4. c3 {[%emt 0:00:56]} Bd6 {[%emt 0:01:11]} 5. d4 {[%emt 0:00:45]} Ne7 {[%emt 0:00:43]} 6. Bd3 {[%emt 0:00:44]} Bf5 {[%emt 0:01:40]} 7. Bxf5 {[%emt 0:02:01] C01: French: Exchange Variation} Nxf5 {[%emt 0:00:07]} 8. Qb3 {[%emt 0:01:27]} Qe7+ {[%emt 0:02:35]} 9. Kf1 $146 {[%emt 0:00:45]} ({Predecessor:} 9. Kd1 O-O 10. Qxb7 Nd7 11. Qxd5 Qf6 12. Bg5 Qg6 13. g4 Ne7 14. Bxe7 Qd3+ {1-0 (28) Hadden,I (1598)-Caffaratti,P (1039) IECG email 1999}) 9... c6 {[%emt 0:01:52]} 10. Bg5 {[%emt 0:00:38]} f6 {[%emt 0:00:41]} 11. Nbd2 {[%emt 0:00:44]} O-O {[%emt 0:03:22]} 12. Re1 {[%emt 0:00:47]} Qc7 {[%emt 0:01:29]} 13. Be3 {[%emt 0:00:56]} Nd7 {[%emt 0:02:19]} 14. c4 {[%emt 0:01:39]} Qb6 {[%emt 0:16:02]} 15. Qc2 {[%emt 0:01:10]} Nxe3+ {[%emt 0:06:13]} 16. fxe3 {[%emt 0:01:00]} Qa5 {[%emt 0:09:27]} 17. Qf5 {[%emt 0:00:36]} Rad8 {[%emt 0:02:26]} 18. Qe6+ {[%emt 0:00:57]} Kh8 {[%emt 0:00:28]} 19. Qxd6 {[%emt 0:00:36]} Nb6 {[%emt 0:00:19]} 20. Qg3 {[%emt 0:01:55]} dxc4 {[%emt 0:02:40]} 21. Kf2 {[%emt 0:01:13]} c3 {[%emt 0:01:04]} 22. bxc3 {[%emt 0:01:03]} Qxc3 {[%emt 0:03:45]} 23. Rc1 {[%emt 0:02:40]} Qa3 {[%emt 0:02:11]} 24. Rhf1 {[%emt 0:03:53]} Nd5 {[%emt 0:02:29]} 25. Nc4 {[%emt 0:01:25]} Qxa2+ {[%emt 0:03:32]} 26. Kg1 {[%emt 0:01:03]} Rfe8 {[%emt 0:04:22]} 27. Rf2 {[%emt 0:01:02]} Qb3 {[%emt 0:03:35]} 28. Rb2 {[%emt 0:02:45]} Qd3 {[%emt 0:04:55]} 29. Rxb7 {[%emt 0:08:33]} g5 {[%emt 0:04:20]} 30. Nxg5 {[%emt 0:00:25]} fxg5 {[%emt 0:04:21]} 31. Qxg5 {[%emt 0:00:38]} Qg6 {[%emt 0:00:07]} 32. Qxg6 {[%emt 0:00:20]} hxg6 {[%emt 0:03:20]} 33. Ne5 {[%emt 0:00:21]} Kg8 $18 {[%emt 0:01:34]} 34. Rxc6 {[%emt 0:08:07]} Ne7 {[%emt 0:02:17]} 35. Re6 {[%emt 0:01:11]} Rc8 {[%emt 0:00:46]} 36. Rexe7 {[%emt 0:00:16]} Rc1+ {[%emt 0:01:32]} 37. Kf2 {[%emt 0:00:30]} Rf8+ 38. Kg3 {[%emt 0:00:18]} Rc3 {[%emt 0:02:41]} 39. Rg7+ 1-0

[Event "XIII Figueira da Foz Open 2019"]
[Site "Figueira da Foz"]
[Date "2019.11.03"]
[Round "9.9"]
[White "Rey Malde, Henrique"]
[Black "Fernandes, Miguel A. Murtinho"]
[Result "1/2-1/2"]
[ECO "B12"]
[WhiteElo "2209"]
[BlackElo "2115"]
[Annotator "ChessBase"]
[PlyCount "85"]
[EventDate "2019.10.27"]
[EventType "swiss"]
[EventCountry "POR"]
[SourceTitle "playchess.com"]
[Source "ChessBase"]
[SourceQuality "1"]
[TimeControl "40/5400+30:1800+30"]

1. e4 {[%emt 0:00:00]} c6 {[%emt 0:00:00]} 2. d4 {[%emt 0:00:00]} d5 {[%emt 0:00:00]} 3. e5 {[%emt 0:00:00]} Bf5 {[%emt 0:00:00]} 4. h4 {[%emt 0:01:17]} h5 {[%emt 0:00:20]} 5. Bd3 {[%emt 0:00:20]} Bxd3 {[%emt 0:00:23]} 6. Qxd3 {[%emt 0:00:03]} e6 {[%emt 0:00:19]} 7. Bg5 {[%emt 0:00:38]} Qb6 {[%emt 0:00:44]} 8. Nd2 {[%emt 0:00:21]} Nd7 {[%emt 0:02:37]} 9. Ngf3 {[%emt 0:00:59]} Ne7 {[%emt 0:02:19]} 10. O-O {[%emt 0:02:58]} O-O-O {[%emt 0:03:07]} 11. a4 Qc7 12. g3 {[%emt 0:15:03]} Kb8 {[%emt 0:12:18]} 13. b4 {[%emt 0:05:48]} Rc8 {[%emt 0:04:03]} 14. Rfb1 {[%emt 0:00:57]} Nf5 {[%emt 0:03:41]} 15. Bf4 {[%emt 0:07:58]} Be7 {[%emt 0:04:46]} 16. c3 Nf8 {[%emt 0:04:28]} 17. Nb3 {[%emt 0:10:49]} Ng6 {[%emt 0:01:13]} 18. Qd2 Qd8 {[%emt 0:04:34]} 19. Nc5 {[%emt 0:07:21]} Nxf4 {[%emt 0:00:56]} 20. Qxf4 {[%emt 0:00:09]} g5 {[%emt 0:02:54]} 21. Nxg5 {[%emt 0:03:25]} Bxg5 {[%emt 0:00:15]} 22. Qxg5 {[%emt 0:02:22]} Qxg5 {[%emt 0:01:32]} 23. hxg5 {[%emt 0:00:07]} Rcg8 {[%emt 0:01:06]} 24. b5 b6 25. bxc6 {[%emt 0:24:39]} Kc7 {[%emt 0:00:46]} 26. Nd3 {[%emt 0:04:50]} a5 {[%emt 0:04:31]} 27. Ra2 {[%emt 0:03:37]} Rxg5 {[%emt 0:00:09]} 28. Rab2 {[%emt 0:00:06]} Rb8 {[%emt 0:00:22]} 29. Kf1 {[%emt 0:02:39]} h4 {[%emt 0:03:34]} 30. gxh4 {[%emt 0:00:04]} Nxh4 {[%emt 0:00:07]} 31. Rb5 {[%emt 0:00:50]} Rgg8 {[%emt 0:01:16]} 32. Ke2 {[%emt 0:01:11]} Nf5 {[%emt 0:02:11]} 33. Rh1 {[%emt 0:01:05]} Kxc6 {[%emt 0:00:30]} 34. Rh7 {[%emt 0:00:29]} Rg7 {[%emt 0:00:21]} 35. Rxg7 {[%emt 0:03:16]} Nxg7 {[%emt 0:00:07]} 36. Nf4 {[%emt 0:00:13]} Ne8 {[%emt 0:01:05]} 37. Kd3 {[%emt 0:01:22]} Nc7 {[%emt 0:00:13]} 38. Rb1 {[%emt 0:00:05]} b5 {[%emt 0:00:52]} 39. axb5+ {[%emt 0:01:33]} Nxb5 {[%emt 0:02:06]} 40. Ra1 {[%emt 0:00:00]} Kb6 {[%emt 0:00:00]} 41. Ne2 Rc8 42. Ra4 Na7 43. c4 1/2-1/2

[Event "XIII Figueira da Foz Open 2019"]
[Site "Figueira da Foz"]
[Date "2019.11.03"]
[Round "9.10"]
[White "Roettgen, Juergen"]
[Black "Lisowski, Krzysztof"]
[Result "0-1"]
[ECO "A06"]
[WhiteElo "2157"]
[BlackElo "2179"]
[Annotator "ChessBase"]
[PlyCount "72"]
[EventDate "2019.10.27"]
[EventType "swiss"]
[EventCountry "POR"]
[SourceTitle "playchess.com"]
[Source "ChessBase"]
[SourceQuality "1"]
[TimeControl "40/5400+30:1800+30"]

1. Nf3 {[%emt 0:00:00]} Nf6 {[%emt 0:00:00]} 2. c4 {[%emt 0:00:01]} e6 {[%emt 0:00:05]} 3. e3 {[%emt 0:00:52]} d5 {[%emt 0:03:30]} 4. b3 {[%emt 0:01:53]} c5 {[%emt 0:01:37]} 5. Bb2 {[%emt 0:01:06]} Nc6 {[%emt 0:00:30]} 6. cxd5 {[%emt 0:02:54]} exd5 {[%emt 0:01:12]} 7. Bb5 {[%emt 0:02:48]} Bd7 {[%emt 0:08:53]} 8. O-O {[%emt 0:02:58]} Bd6 {[%emt 0:01:21]} 9. Bxc6 {[%emt 0:03:58]} Bxc6 {[%emt 0:00:12]} 10. d4 {[%emt 0:00:09]} O-O {[%emt 0:09:23]} 11. Nbd2 {[%emt 0:07:17]} b6 {[%emt 0:03:22]} 12. Rc1 {[%emt 0:02:21]} Rc8 {[%emt 0:00:37]} 13. Ne5 {[%emt 0:02:42]} Bb5 {[%emt 0:11:46]} 14. Re1 {[%emt 0:01:00]} Qe7 {[%emt 0:00:39]} 15. f4 {[%emt 0:06:46]} cxd4 {[%emt 0:19:31]} 16. exd4 {[%emt 0:09:19]} Ne4 {[%emt 0:04:29]} 17. Nxe4 {[%emt 0:04:18]} dxe4 {[%emt 0:00:06]} 18. d5 {[%emt 0:00:36]} f6 {[%emt 0:13:38]} 19. Rxc8 {[%emt 0:07:02]} Rxc8 {[%emt 0:00:05]} 20. Nc6 {[%emt 0:02:20]} Bxc6 {[%emt 0:00:27]} 21. dxc6 {[%emt 0:00:17]} Qe6 {[%emt 0:00:30]} 22. Qc2 {[%emt 0:05:04]} Rxc6 {[%emt 0:07:04]} 23. Qxe4 {[%emt 0:04:54]} Qxe4 {[%emt 0:00:08]} 24. Rxe4 {[%emt 0:00:06]} Rc2 {[%emt 0:00:08]} 25. Bd4 {[%emt 0:00:41]} Rxa2 {[%emt 0:01:38]} 26. f5 {[%emt 0:02:45]} Rd2 {[%emt 0:03:15]} 27. Be3 {[%emt 0:02:45]} Rd3 {[%emt 0:01:31]} 28. Rd4 {[%emt 0:01:21]} Rxd4 {[%emt 0:02:00]} 29. Bxd4 {[%emt 0:00:01]} Bc5 {[%emt 0:00:39]} 30. Bxc5 {[%emt 0:00:19]} bxc5 {[%emt 0:00:06]} 31. Kf2 {[%emt 0:00:25]} Kf7 {[%emt 0:00:55]} 32. Ke3 {[%emt 0:00:10]} Ke7 {[%emt 0:00:47]} 33. Kd3 {[%emt 0:00:08]} Kd6 {[%emt 0:00:35]} 34. Kc4 {[%emt 0:00:05]} Kc6 {[%emt 0:00:51]} 35. g4 {[%emt 0:03:18]} a6 {[%emt 0:02:29]} 36. h3 {[%emt 0:01:29]} Kd6 {[%emt 0:00:31]} 0-1

[Event "XIII Figueira da Foz Open 2019"]
[Site "Figueira da Foz"]
[Date "2019.11.03"]
[Round "9.11"]
[White "Adams, Philip"]
[Black "Pintor, Simao Maciel Abranch"]
[Result "1-0"]
[ECO "A08"]
[WhiteElo "1993"]
[BlackElo "2137"]
[Annotator "ChessBase"]
[PlyCount "100"]
[EventDate "2019.10.27"]
[EventType "swiss"]
[EventCountry "POR"]
[SourceTitle "playchess.com"]
[Source "ChessBase"]
[SourceQuality "1"]
[TimeControl "40/5400+30:1800+30"]

1. Nf3 d5 {[%emt 0:00:00]} 2. g3 {[%emt 0:00:00]} c5 {[%emt 0:00:00]} 3. Bg2 {[%emt 0:00:00]} Nc6 {[%emt 0:00:00]} 4. d4 {[%emt 0:00:12]} e6 {[%emt 0:00:16]} 5. O-O {[%emt 0:00:09]} Nf6 {[%emt 0:00:08]} 6. c4 {[%emt 0:00:27]} Be7 {[%emt 0:04:19]} 7. dxc5 {[%emt 0:00:38]} Bxc5 {[%emt 0:00:07]} 8. a3 {[%emt 0:00:13]} a5 {[%emt 0:00:38]} 9. cxd5 {[%emt 0:05:45]} exd5 {[%emt 0:00:56]} 10. Qc2 {[%emt 0:00:55]} Bb6 {[%emt 0:05:45]} 11. Nc3 {[%emt 0:06:06]} O-O {[%emt 0:02:00]} 12. Bg5 {[%emt 0:03:07]} Be6 {[%emt 0:00:54]} 13. Rad1 {[%emt 0:01:22]} Rc8 {[%emt 0:00:46]} 14. Qa4 {[%emt 0:03:50]} h6 {[%emt 0:11:49]} 15. Bxf6 {[%emt 0:04:28]} Qxf6 {[%emt 0:00:14]} 16. Nxd5 {[%emt 0:04:55]} Bxd5 {[%emt 0:00:05]} 17. Rxd5 {[%emt 0:00:08]} Rfe8 {[%emt 0:16:30]} 18. e3 {[%emt 0:04:33]} Rcd8 {[%emt 0:11:12]} 19. Rxd8 {[%emt 0:11:15]} Rxd8 {[%emt 0:00:07]} 20. Qb5 {[%emt 0:03:26]} Ne7 {[%emt 0:00:54]} 21. Qe5 {[%emt 0:05:21]} Qxe5 {[%emt 0:04:24]} 22. Nxe5 {[%emt 0:00:17]} Bc7 {[%emt 0:00:05]} 23. Nf3 {[%emt 0:01:16]} Nc6 {[%emt 0:05:01]} 24. Rc1 {[%emt 0:13:11]} Rd3 {[%emt 0:06:05]} 25. Kf1 {[%emt 0:05:56]} Rb3 {[%emt 0:02:36]} 26. Rc2 {[%emt 0:00:36]} Bd8 {[%emt 0:00:49]} 27. Nd2 {[%emt 0:04:06]} Rb5 {[%emt 0:01:20]} 28. Bxc6 {[%emt 0:07:14]} bxc6 {[%emt 0:00:05]} 29. b3 {[%emt 0:00:27]} Be7 {[%emt 0:01:36]} 30. a4 {[%emt 0:02:01]} Rd5 {[%emt 0:00:26]} 31. Ke2 {[%emt 0:01:22]} Bb4 {[%emt 0:00:12]} 32. Nc4 {[%emt 0:01:23]} Kf8 {[%emt 0:00:42]} 33. Rc1 {[%emt 0:05:08]} Ke7 {[%emt 0:00:13]} 34. Rd1 {[%emt 0:00:24]} Ke6 {[%emt 0:00:58]} 35. Rd3 {[%emt 0:01:46]} g5 {[%emt 0:03:29]} 36. e4 {[%emt 0:00:49]} Rxd3 {[%emt 0:00:22]} 37. Kxd3 {[%emt 0:00:02]} h5 {[%emt 0:03:38]} 38. h3 {[%emt 0:02:40]} f5 {[%emt 0:01:03]} 39. exf5+ {[%emt 0:02:08]} Kxf5 {[%emt 0:00:05]} 40. Ne3+ {[%emt 0:00:00]} Ke5 {[%emt 0:00:00]} 41. Ng2 {[%emt 0:09:29]} Bc5 {[%emt 0:01:40]} 42. f4+ {[%emt 0:02:13]} gxf4 {[%emt 0:00:10]} 43. Nxf4 {[%emt 0:00:13]} h4 {[%emt 0:01:46]} 44. Ng6+ {[%emt 0:02:00]} Kf6 {[%emt 0:00:03]} 45. Nxh4 {[%emt 0:00:13]} Bf2 {[%emt 0:00:04]} 46. Nf3 {[%emt 0:01:03]} Bxg3 {[%emt 0:00:07]} 47. Nd4 {[%emt 0:00:15]} Be1 {[%emt 0:06:28]} 48. Nxc6 {[%emt 0:00:54]} Ke6 {[%emt 0:00:05]} 49. Kc4 {[%emt 0:00:28]} Kd6 {[%emt 0:00:05]} 50. Kb5 {[%emt 0:00:18]} Kd5 1-0

[Event "XIII Figueira da Foz Open 2019"]
[Site "Figueira da Foz"]
[Date "2019.11.03"]
[Round "9.12"]
[White "Guerreiro, Nuno"]
[Black "Morais, Mario Martins Freita"]
[Result "1-0"]
[ECO "A06"]
[WhiteElo "2069"]
[BlackElo "1742"]
[Annotator "NA"]
[PlyCount "87"]
[EventDate "2019.10.27"]
[EventType "swiss"]
[EventCountry "POR"]
[SourceTitle "playchess.com"]
[Source "ChessBase"]
[SourceQuality "1"]
[TimeControl "40/5400+30:1800+30"]

1. Nf3 d5 {[%emt 0:00:59]} 2. c4 {[%emt 0:00:00]} c6 {[%emt 0:00:53]} 3. Qc2 {[%emt 0:01:04]} Nf6 {[%emt 0:00:15]} 4. g3 {[%emt 0:00:08]} g6 {[%emt 0:00:07]} 5. Bg2 {[%emt 0:00:22]} Bg7 {[%emt 0:00:13]} 6. O-O {[%emt 0:00:08]} O-O {[%emt 0:00:31]} 7. d3 {[%emt 0:01:09]} Re8 {[%emt 0:04:04]} 8. e4 {[%emt 0:00:37]} e5 {[%emt 0:00:32]} 9. Nc3 {[%emt 0:02:51]} d4 {[%emt 0:05:42]} 10. Nb1 {[%emt 0:01:40]} Nh5 {[%emt 0:00:14]} 11. Qe2 {[%emt 0:03:02]} Na6 {[%emt 0:15:41]} 12. Ne1 {[%emt 0:00:41]} f5 {[%emt 0:00:17]} 13. exf5 {[%emt 0:00:18]} e4 {[%emt 0:11:20]} 14. fxg6 {[%emt 0:00:58]} hxg6 {[%emt 0:02:39]} 15. dxe4 {[%emt 0:00:31]} Nc5 {[%emt 0:00:38]} 16. Nd3 {[%emt 0:00:28]} Qe7 {[%emt 0:01:19]} 17. Nxc5 {[%emt 0:03:33]} Qxc5 {[%emt 0:00:01]} 18. Nd2 {[%emt 0:01:12]} Be6 {[%emt 0:00:22]} 19. Qd3 {[%emt 0:04:15]} Nf6 {[%emt 0:00:34]} 20. a4 {[%emt 0:02:45]} Qh5 {[%emt 0:00:13]} 21. Re1 {[%emt 0:07:59]} Kf7 {[%emt 0:09:15]} 22. Nf3 {[%emt 0:02:59]} Ng4 {[%emt 0:12:43]} 23. h4 {[%emt 0:00:47]} Bf6 {[%emt 0:04:35]} 24. Bg5 {[%emt 0:04:18]} Ne5 {[%emt 0:03:06]} 25. Nxe5+ {[%emt 0:00:20]} Bxe5 {[%emt 0:00:06]} 26. f4 {[%emt 0:02:04]} Bg7 {[%emt 0:00:20]} 27. c5 {[%emt 0:00:51]} Rad8 {[%emt 0:05:21]} 28. a5 {[%emt 0:12:55]} Rd7 {[%emt 0:02:00]} 29. f5 {[%emt 0:08:23]} gxf5 {[%emt 0:00:23]} 30. exf5 {[%emt 0:00:12]} Bd5 {[%emt 0:00:16]} 31. Rxe8 {[%emt 0:00:43]} Kxe8 {[%emt 0:00:43]} 32. Bxd5 {[%emt 0:02:01]} Rxd5 {[%emt 0:00:24]} 33. f6 {[%emt 0:00:34]} Bf8 {[%emt 0:00:50]} 34. a6 {[%emt 0:04:14]} bxa6 {[%emt 0:03:42]} 35. b4 {[%emt 0:02:50]} Rxg5 {[%emt 0:02:47]} 36. hxg5 {[%emt 0:00:15]} Qxg5 {[%emt 0:00:07]} 37. Rf1 {[%emt 0:02:36]} Qe5 {[%emt 0:02:02]} 38. Rf4 {[%emt 0:05:16]} Qe1+ {[%emt 0:01:52]} 39. Kg2 {[%emt 0:00:23]} Qa1 {[%emt 0:07:32]} 40. f7+ {[%emt 0:00:00]} Kd7 {[%emt 0:00:00]} 41. Rxd4+ {[%emt 0:05:12]} Ke7 {[%emt 0:04:07]} 42. Rf4 {[%emt 0:01:24]} Qa2+ {[%emt 0:01:05]} 43. Rf2 {[%emt 0:00:59]} Qd5+ {[%emt 0:00:46]} 44. Qxd5 {[%emt 0:00:10]} 1-0

[Event "XIII Figueira da Foz Open 2019"]
[Site "Figueira da Foz"]
[Date "2019.11.03"]
[Round "9.14"]
[White "Puglia, Francesco"]
[Black "Gama, Joao Goncalo Cerejei"]
[Result "0-1"]
[ECO "C52"]
[WhiteElo "1916"]
[BlackElo "1712"]
[Annotator "NA"]
[PlyCount "122"]
[EventDate "2019.10.27"]
[EventType "swiss"]
[EventCountry "POR"]
[SourceTitle "playchess.com"]
[Source "ChessBase"]
[SourceQuality "1"]
[TimeControl "40/5400+30:1800+30"]

1. e4 {[%emt 0:00:00]} e5 {[%emt 0:00:00]} 2. Nf3 {[%emt 0:00:00]} Nc6 {[%emt 0:00:00]} 3. Bc4 {[%emt 0:00:00]} Bc5 {[%emt 0:00:00]} 4. b4 {[%emt 0:00:00]} Bxb4 {[%emt 0:00:00]} 5. c3 {[%emt 0:00:00]} Ba5 {[%emt 0:00:09]} 6. d4 {[%emt 0:00:00]} exd4 {[%emt 0:06:03]} 7. Qb3 {[%emt 0:00:03] C52: Evans Gambit Accepted: 5 c3 Ba5} Qe7 {[%emt 0:01:14]} (7... Qf6 8. O-O d3 9. e5 Qg6 10. Ba3 Nge7 11. Rd1 O-O 12. Bxd3 Qh6 13. Nbd2 d5 14. exd6 cxd6 15. Ne4 d5 16. Bc1 Qg6 {0-1 (59) Short,N (2698)-Kasparov,G (2812) Leuven 2011}) 8. O-O {[%emt 0:00:04]} Bb6 {[%emt 0:02:40]} 9. Ba3 {[%emt 0:14:32]} d6 {[%emt 0:04:56]} 10. e5 {[%emt 0:04:09]} Na5 {[%emt 0:11:19]} 11. Qa4+ {[%emt 0:01:29]} Bd7 {[%emt 0:01:04]} 12. Bb5 {[%emt 0:00:50]} Bxb5 {[%emt 0:02:57]} 13. Qxb5+ {[%emt 0:01:24]} Qd7 {[%emt 0:00:20]} 14. Qd3 {[%emt 0:05:05]} Ne7 $146 {[%emt 0:06:44]} ({Predecessor:} 14... Nc6 15. exd6 cxd6 16. cxd4 {0-1 (52) Fischer,T (2027)-Stoica,V (1865) Worms 2013}) 15. exd6 {[%emt 0:15:42]} cxd6 {[%emt 0:00:17]} 16. cxd4 {[%emt 0:00:22]} O-O {[%emt 0:01:22]} 17. Nc3 {[%emt 0:06:55]} Qf5 {[%emt 0:15:06]} 18. Qe4 {[%emt 0:14:18]} Qxe4 {[%emt 0:02:54]} 19. Nxe4 {[%emt 0:00:03]} Nc4 {[%emt 0:03:51]} 20. Bxd6 {[%emt 0:11:18]} Nxd6 {[%emt 0:00:08]} 21. Nxd6 {[%emt 0:00:03]} Nc6 {[%emt 0:00:56]} 22. d5 {[%emt 0:00:58]} Nb4 {[%emt 0:01:40]} 23. Rfd1 {[%emt 0:01:41]} Rfd8 {[%emt 0:02:57]} 24. Nf5 {[%emt 0:00:55]} g6 {[%emt 0:04:49]} 25. a3 {[%emt 0:00:25]} Na6 {[%emt 0:04:00]} 26. Nh6+ {[%emt 0:02:58]} Kg7 {[%emt 0:02:18]} 27. Ng4 {[%emt 0:01:40]} Rd6 {[%emt 0:05:43]} 28. Re1 {[%emt 0:12:56]} h5 {[%emt 0:01:33]} 29. Ne3 {[%emt 0:04:37]} Bxe3 {[%emt 0:02:21]} 30. Rxe3 {[%emt 0:00:02]} Rxd5 {[%emt 0:00:13]} 31. Re7 {[%emt 0:00:45]} Rad8 {[%emt 0:00:24]} 32. h4 {[%emt 0:00:15]} R8d7 {[%emt 0:06:24]} 33. Rae1 {[%emt 0:00:13]} Kf6 {[%emt 0:00:49]} 34. Re8 {[%emt 0:01:02]} Rd1 {[%emt 0:00:53]} 35. Rxd1 {[%emt 0:01:33]} Rxd1+ {[%emt 0:00:06]} 36. Kh2 {[%emt 0:00:02]} Nc5 {[%emt 0:02:30]} 37. Ng5 {[%emt 0:00:49]} Rd7 {[%emt 0:02:39]} 38. Ra8 {[%emt 0:00:33]} b6 {[%emt 0:01:00]} 39. Rc8 {[%emt 0:00:03]} Ne6 {[%emt 0:01:23]} 40. Rc6 {[%emt 0:00:00]} Ke5 {[%emt 0:00:00]} 41. Nxe6 {[%emt 0:07:06]} fxe6 {[%emt 0:02:15]} 42. Rc3 {[%emt 0:00:15]} Rd4 {[%emt 0:03:27]} 43. g3 {[%emt 0:02:40]} Ra4 {[%emt 0:01:46]} 44. Kg2 $19 {[%emt 0:01:28]} Kd4 {[%emt 0:05:38]} 45. Rb3 {[%emt 0:06:46]} e5 {[%emt 0:03:30]} 46. Kf3 {[%emt 0:01:22]} Kc4 {[%emt 0:01:17]} 47. Re3 {[%emt 0:00:17]} Kd5 {[%emt 0:00:14]} 48. Rb3 {[%emt 0:00:27]} Ke6 {[%emt 0:05:59]} 49. Ke3 {[%emt 0:01:25]} Kf5 {[%emt 0:00:34]} 50. Kf3 {[%emt 0:04:52]} a5 {[%emt 0:00:54]} 51. Ke3 {[%emt 0:03:44]} b5 {[%emt 0:00:34]} 52. Kf3 {[%emt 0:06:58]} b4 {[%emt 0:00:22]} 53. axb4 {[%emt 0:00:07]} Rxb4 {[%emt 0:01:05]} 54. Rc3 {[%emt 0:01:07]} a4 {[%emt 0:00:04]} 55. Rc6 {[%emt 0:00:10]} Rb3+ {[%emt 0:00:24]} 56. Kg2 {[%emt 0:00:30]} a3 {[%emt 0:00:13]} 57. Ra6 {[%emt 0:00:09]} e4 {[%emt 0:02:18]} 58. Ra5+ {[%emt 0:00:31]} Ke6 {[%emt 0:00:00]} 59. Ra6+ {[%emt 0:00:34]} Kd5 {[%emt 0:03:39]} 60. Rxg6 {[%emt 0:00:11]} a2 {[%emt 0:00:29]} 61. Ra6 {[%emt 0:00:08]} Rb2 {[%emt 0:00:18]} 0-1